Cogmind - Beta 17.1 @@@ ROGUE MODE // 2026.09.16 @ 15:45:19 Player: osman sinnoks Result: Destroyed by Y-45 Defender with Heavy Assault Rifle Performance ------------- Evolutions (2) 1000 Regions Visited (7) 1400 Robots Destroyed (87) 435 Value Destroyed (3139) 3139 Prototype IDs (4) 80 Alien Tech Used (0) 0 Bonus (914) 914 TOTAL SCORE: 6968 Bonus ------- High Alert Combat Kills 255 Follower Combat Kills 159 Entered Garrisons 200 Aligned with FarCom 300 Cogmind --------- Core Integrity 0/550 Matter 232/300 Energy 100/100 System Corruption 3% Temperature Cool (9) Movement Treading (160) Location -8/Materials Parts ------- > --- POWER (1) -------- (None) > --- PROPULSION (3) --- Light Treads Light Treads > --- UTILITY (4) ------ Large Storage Unit 0b10 Alert Chip Advanced Targeting Computer Hacking Suite > --- WEAPON (3) ------- Heavy Assault Rifle Assault Cannon Heavy Hammer > --- INVENTORY (15) --- Fission Core Light Treads Light Treads Light Treads Cryofiber Web Advanced Heat Sink High-capacity Matter Pod (200) High-capacity Matter Pod (200) Advanced Targeting Computer Minigun Assault Cannon Assault Cannon Heavy Hammer Peak State ------------ > --- POWER ------------ Light Nuclear Core > --- PROPULSION ------- Light Treads Carbon-fiber Leg Carbon-fiber Leg > --- UTILITY ---------- Advanced Heat Sink Large Storage Unit 0b10 Alert Chip Hacking Suite > --- WEAPON ----------- Gauss Rifle Assault Cannon Heavy Hammer > --- INVENTORY -------- Fission Core Flexi-carbon Leg Cryofiber Web High-capacity Matter Pod High-capacity Matter Pod Advanced Targeting Computer Advanced Targeting Computer Medium Armor Plating Hardened Medium Armor Plating Remote Datajack Heavy Hammer [Rating: 37] Favorites ----------- Power Light Nuclear Core Engine Ion Engine Power Core Light Nuclear Core Propulsion Light Treads Treads Light Treads Leg Aluminum Leg Wheel Armored Wheel Utility Large Storage Unit Device Seismic Detector Storage Large Storage Unit Processor 0b10 Alert Chip Hackware Hacking Suite Protection Hardened Medium Armor Plating Weapon Assault Rifle Energy Gun Beamcaster Ballistic Gun Assault Rifle Ballistic Cannon Assault Cannon Launcher Rocket Launcher Impact Weapon Heavy Hammer Build | -11 -10 -10 -10 -9 -8 -8 -8 ------- Run | Yrd Mat Min Exi Min Mat Gar Mat Slots Evolved 4 | . . . . . 4 . . Power . | . . . . . . . . Propulsion 1 | . . . . . 1 . . Utility 2 | . . . . . 2 . . Weapon 1 | . . . . . 1 . . Parts Attached 56 | 7 2 . 2 6 19 19 1 Power 7 | 1 . . . 1 3 2 . Engine 5 | 1 . . . 1 2 1 . Core 2 | . . . . . 1 1 . Reactor . | . . . . . . . . Propulsion 19 | 2 . . . 2 6 9 . Treads 13 | 2 . . . . 4 7 . Leg 4 | . . . . . 2 2 . Wheel 2 | . . . . 2 . . . Hover . | . . . . . . . . Flight . | . . . . . . . . Utility 14 | 2 1 . 2 . 5 3 1 Device 3 | 1 . . 1 . . 1 . Storage 2 | 1 1 . . . . . . Processor 2 | . . . 1 . . . 1 Hackware 1 | . . . . . 1 . . Protection 6 | . . . . . 4 2 . Artifact . | . . . . . . . . Weapon 16 | 2 1 . . 3 5 5 . Energy Gun 2 | 1 . . . . 1 . . Energy Cannon . | . . . . . . . . Ballistic Gun 8 | 1 1 . . 1 2 3 . Ballistic Cannon 3 | . . . . . 1 2 . Launcher 2 | . . . . 1 1 . . Special Weapon . | . . . . . . . . Impact Weapon 1 | . . . . 1 . . . Slashing Weapon . | . . . . . . . . Piercing Weapon . | . . . . . . . . Special Melee Weapon . | . . . . . . . . Unidentified Prototypes 4 | . . . 2 . 2 . . Parts Lost 23 | . . . . 2 8 11 2 Power 4 | . . . . 1 1 1 1 Propulsion 8 | . . . . 1 3 4 . Utility 5 | . . . . . 2 2 1 Weapon 6 | . . . . . 2 4 . Highest Loss Streak 4 | . . . . 1 3 4 1 To Critical Strikes 2 | . . . . 1 1 . . Average Backups 12 | 1 6 9 9 12 14 14 14 Power 1 | . 1 1 1 1 1 1 1 Propulsion 2 | . 1 2 2 2 1 2 3 Utility 5 | . . 2 2 3 6 7 6 Weapon 3 | 1 3 4 4 5 5 2 3 Tool/Special . | . . . . . . . . Unused Backups 21 | . 1 . 1 1 . 5 13 Power 3 | . . . . 1 . 1 1 Propulsion 3 | . . . . . . 1 2 Utility 8 | . . . 1 . . 2 5 Weapon 6 | . 1 . . . . 1 4 Tool/Special 1 | . . . . . . . 1 Average Slot Usage (%) 97 | . 100 100 100 99 93 99 89 Engine 6 | . 14 14 14 14 8 2 . Core 3 | . . . . . . 6 9 Treads 20 | . 28 28 28 1 14 24 18 Leg 1 | . . . . . 2 1 . Wheel 3 | . . . . 25 6 . . Device 1 | . 14 14 5 . . . . Storage 10 | . 14 14 14 14 9 9 9 Processor 8 | . . . 8 14 9 9 10 Hackware 6 | . . . . . 8 9 9 Protection 5 | . . . . . 8 7 6 Ballistic Gun 14 | . 27 28 28 21 14 8 9 Ballistic Cannon 5 | . . . . . 5 7 9 Launcher 1 | . . . . 3 2 1 . Impact Weapon 4 | . . . . 2 . 8 9 Peak Build Rating 37 | 7 8 8 15 18 33 37 28 Average Rating 25 | 5 7 8 10 15 29 30 27 On Entrance 14 | . 7 8 8 13 18 32 28 Avg Prop Armor Cover (%) 5 | . . . . . 4 6 . Naked Turns . | . . . . . . . . Heaviest Build 55 | 14 30 30 30 31 50 55 44 Greatest Support 60 | 40 40 40 40 24 60 60 40 Greatest Overweight (x) 4 | . . . . 1 4 1 1 Average Overweight (x) . | . . . . 1 . . . Largest Inventory Capacity 15 | 8 15 15 15 15 15 15 15 Average Capacity 14 | 7 10 15 15 15 15 15 15 Most Carried 15 | 5 9 9 10 15 15 15 15 Average Carried 12 | 2 6 9 9 13 14 14 14 Final Capacity 15 | 8 15 15 15 15 15 15 15 Final Carried 15 | 2 9 9 10 15 15 15 13 Class Distribution -------------------- 51% | Scavenger-Mutant 26% | Mutant 11% | Scavenger-Skirmisher 10% | Skirmisher Dominant Class ---------------- Mutant | -10/Materials Mutant | -10/Mines Mutant | -10/Exiles Mutant | -9/Mines Skirmisher | -8/Materials Scavenger-Mutant | -8/Garrison Scavenger-Mutant | -8/Materials Resources | -11 -10 -10 -10 -9 -8 -8 -8 ----------- Run | Yrd Mat Min Exi Min Mat Gar Mat Matter Collected 2937 | 288 110 . 120 172 1371 847 29 Remotely . | . . . . . . . . Salvage Created 2894 | 82 157 . . 145 1505 975 30 Parts 158 | 8 14 . . 4 75 57 . Haulers Intercepted 3 | . . . . . 3 . . Recyclers Shooed 7 | 1 . . . 1 5 . . Parts Field Recycled . | . . . . . . . . Retrieved Matter . | . . . . . . . . Parts Self-Destructed . | . . . . . . . . Prevented . | . . . . . . . . Parts Restored . | . . . . . . . . Kills | -11 -10 -10 -10 -9 -8 -8 -8 ------- Run | Yrd Mat Min Exi Min Mat Gar Mat Combat Hostiles Destroyed 71 | . 3 . . 7 32 27 2 Melee 2 | . . . . . . 2 . Guns 40 | . 3 . . 4 18 14 1 Cannons 13 | . . . . . 7 6 . AOE 12 | . . . . 3 7 2 . Classes Destroyed 16 | 1 3 . . 3 6 3 . Worker 2 | . . . . . 2 . . Tunneler 3 | 3 . . . . . . . Hauler 3 | . . . . . 3 . . Recycler 8 | . . . . 1 7 . . Mechanic 1 | . . . . . 1 . . Operator 1 | . 1 . . . . . . Watcher 2 | . 1 . . . 1 . . Swarmer 27 | . . . . 3 15 7 2 Grunt 22 | . 3 . . . 11 8 . Brawler 1 | . . . . . . 1 . Duelist 1 | . . . . . 1 . . Sentry 10 | . . . . . 4 6 . Specialist 3 | . . . . . . 3 . Hunter 2 | . . . . . 1 1 . Programmer 1 | . . . . . . 1 . Assembled 4 | . . . . 4 . . . Best Kill Streak 10 | 2 2 . . 4 10 4 2 Combat Bots Only 6 | . 2 . . 3 6 4 2 Max Kills in Single Turn 2 | 1 1 . . 2 2 1 1 Gunslinging . | . . . . . . . . Exploded 2 | . . . . 1 2 1 . Melee 1 | . . . . . . 1 . Uniques/NPCs Destroyed . | . . . . . . . . Combat | -11 -10 -10 -10 -9 -8 -8 -8 -------- Run | Yrd Mat Min Exi Min Mat Gar Mat Hostile Shots Fired 438 | . 17 . . 35 172 195 19 Missed 108 | . . . . 11 39 54 4 Hits 330 | . 17 . . 24 133 141 15 Melee 7 | . . . . 5 . 2 . Projectile 323 | . 17 . . 19 133 139 15 Critical Strikes 10 | . . . . 2 5 2 1 Damage Taken 4783 | . 193 . . 422 1866 2137 165 Core 664 | . 12 . . 95 153 385 19 Absorbed by Shields . | . . . . . . . . Regen/Repaired (Parts) 271 | . . . . . 271 . . Core Remaining (%) 78 | 100 . . . 57 . . . Volleys Fired 209 | 6 15 . . 20 102 59 7 Largest 3 | 2 2 . . 2 3 2 2 Hottest 128 | 60 40 . . 53 128 65 60 Shots Fired 459 | 12 30 . . 35 255 113 14 Gun 323 | 12 30 . . 30 177 67 7 Cannon 111 | . . . . . 61 43 7 Launcher 25 | . . . . 5 17 3 . Special . | . . . . . . . . Kinetic 407 | 6 30 . . 30 217 110 14 Thermal 27 | 6 . . . . 21 . . Explosive 25 | . . . . 5 17 3 . Electromagnetic . | . . . . . . . . Robot Hit Streak 16 | 7 13 . . 6 16 10 11 Robot Miss Streak 4 | 3 4 . . 3 4 4 2 Penetration Max 2 | . . . . . 2 1 . Secondary Targets 1 | . 1 . . . . . . Max Gunslinging Chain 1 | . 1 . . . . . . Shots Hit Robots 292 | 7 20 . . 21 141 91 12 Core Hits 132 | 3 9 . . 11 69 38 2 Critical Kills 10 | . . . . . 7 3 . Critical Parts Destroyed 14 | . . . . 1 11 2 . Critical Strikes 30 | . . . . 1 21 8 . Burn 1 | . . . . . 1 . . Destroy 24 | . . . . . 20 4 . Blast 1 | . . . . . . 1 . Smash 4 | . . . . 1 . 3 . Melee Attacks 74 | . . . . 4 . 68 2 Impact 74 | . . . . 4 . 68 2 Slashing . | . . . . . . . . Piercing . | . . . . . . . . Sneak Attacks . | . . . . . . . . Combat Hostiles . | . . . . . . . . Follow-up Attacks . | . . . . . . . . Damage Inflicted 7254 | 97 247 . . 560 3587 2531 232 Guns 3187 | 97 247 . . 197 1730 826 90 Cannons 1429 | . . . . . 581 728 120 Explosions 1866 | . . . . 237 1265 364 . Melee 761 | . . . . 126 . 613 22 Ramming 11 | . . . . . 11 . . Kinetic 4425 | 52 247 . . 197 2165 1554 210 Thermal 191 | 45 . . . . 146 . . Explosive 1866 | . . . . 237 1265 364 . Electromagnetic . | . . . . . . . . Impact 761 | . . . . 126 . 613 22 Slashing . | . . . . . . . . Piercing . | . . . . . . . . Highest Corruption 3 | . . . . . 3 3 3 Average Corruption 3 | . . . . . 3 3 3 Corruption Purged . | . . . . . . . . Corruption Blocked . | . . . . . . . . Effects 60 | . . . . . 20 34 6 Message Errors 16 | . . . . . 4 10 2 Matter Fused 14 | . . . . . 5 9 . Heat Flow Errors 6 | . . . . . 2 2 2 Energy Discharges 5 | . . . . . . 4 1 Data Loss (minor) 9 | . . . . . 4 5 . Data Loss (major) 2 | . . . . . . 2 . Misfires 4 | . . . . . 2 2 . Alerts 1 | . . . . . . . 1 Weapon Failures 3 | . . . . . 3 . . Overload Shots . | . . . . . . . . Overflow Damage 183 | . . . . 90 40 51 2 Projectiles 5 | . . . . . . 5 . Explosions 95 | . . . . 30 40 25 . Melee 83 | . . . . 60 . 21 2 Knockbacks 14 | . . . . . 3 10 1 Impact 2 | . . . . . . 2 . Kinetic 11 | . . . . . 3 7 1 Secondary 1 | . . . . . . 1 . Self-Inflicted Damage 212 | . . . . . 60 152 . Shots 3 | . . . . . 2 1 . Rammed 2 | . . . . . 2 . . Targets Rammed 3 | . . . . . 3 . . Kicked . | . . . . . . . . Crushed 1 | . . . . . 1 . . Highest Temperature 358 | . . . . . 316 358 258 Average Temperature 91 | . . . . . 101 63 94 Received Heat Transfer 1428 | . 102 . . 39 612 630 45 Effects 1 | . . . . . . 1 . Energy Bleed 1 | . . . . . . 1 . Siege Activations . | . . . . . . . . Martial Activations . | . . . . . . . . Shielding Activations . | . . . . . . . . Robots Disrupted . | . . . . . . . . Combat Hostiles . | . . . . . . . . Robots Corrupted 4 | . . . . . . 3 1 Combat Hostiles 4 | . . . . . . 3 1 Parts Fried 5 | . . . . . . 3 2 Impact Corruptions 7 | . . . . 2 . 4 1 Robots Melted . | . . . . . . . . Combat Hostiles . | . . . . . . . . Parts Melted 1 | . . . . . 1 . . Heat Transferred 433 | 100 . . . . 333 . . Parts Sabotaged . | . . . . . . . . Parts Stolen . | . . . . . . . . Parts Stripped . | . . . . . . . . Power Chain Reactions . | . . . . . . . . Alert | -11 -10 -10 -10 -9 -8 -8 -8 ------- Run | Yrd Mat Min Exi Min Mat Gar Mat Maximum Alert Level 4 | . . . . . 2 4 2 Low Security (%) 25 | 100 100 100 . 100 28 . . Level 1 27 | . . . . . 61 20 . Level 2 25 | . . . . . 9 31 100 Level 3 20 | . . . . . . 46 . Level 4 . | . . . . . . 1 . Level 5 . | . . . . . . . . High Security . | . . . . . . . . Max Security . | . . . . . . . . Peak Influence 1133 | 5 50 . . 96 445 1133 551 Initial 551 | . . . . . 33 283 551 Average 420 | 1 11 . . 12 265 668 483 Influence Increases 2181 | 15 90 . . 116 918 1000 42 Destroy 0b10 Robot/C 1196 | . 60 . . 48 512 544 32 Destroy 0b10 Robot/NC 85 | 15 10 . . 4 56 . . Destroy Leader 172 | . 12 . . 8 112 32 8 Allied During Kill 28 | . . . . . . 28 . Successful Hack 24 | . 7 . . . 12 5 . Disable Machine 60 | . . . . . 60 . . Anti-Garrison Action 240 | . . . . . . 240 . Destroy Structure 316 | . 1 . . 44 130 139 2 Partial Spotted 12 | . . . . . 12 . . Lose Combat Pursuer 48 | . . . . 12 24 12 . Influence Decreases 1768 | 15 90 . . 30 568 303 762 Entered New Map 788 | . . . . . 53 153 582 Time Decay 730 | 15 90 . . 30 435 . 160 Lost Part 210 | . . . . . 80 110 20 Lost Ally 40 | . . . . . . 40 . Squads Dispatched 5 | . 1 . . . 4 . . Investigation 1 | . . . . . 1 . . Extermination . | . . . . . . . . Reinforcement 1 | . 1 . . . . . . Assault . | . . . . . . . . Garrison 3 | . . . . . 3 . . Intercept . | . . . . . . . . Searches Triggered . | . . . . . . . . Construction Impeded . | . . . . . . . . Haulers Reinforced . | . . . . . . . . Active Scanning Responses . | . . . . . . . . Cargo Convoy Interrupts . | . . . . . . . . Stealth | -11 -10 -10 -10 -9 -8 -8 -8 --------- Run | Yrd Mat Min Exi Min Mat Gar Mat Distress Signals 8 | . . . . 2 6 . . Communications Jammed . | . . . . . . . . Distress Signals . | . . . . . . . . Times Spotted 100 | . 7 . . 10 43 36 4 Peak Tracking Total 7 | . 3 . . 3 6 7 3 Tactical Retreats 4 | . . . . 1 2 1 . Traps | -11 -10 -10 -10 -9 -8 -8 -8 ------- Run | Yrd Mat Min Exi Min Mat Gar Mat Traps Triggered 6 | . . . . . 4 2 . Indirectly . | . . . . . . . . Trap Hack Attempts . | . . . . . . . . Triggered . | . . . . . . . . Disarmed . | . . . . . . . . Reprogrammed . | . . . . . . . . Reused . | . . . . . . . . Traps Extracted . | . . . . . . . . Installed . | . . . . . . . . Triggered . | . . . . . . . . Machines | -11 -10 -10 -10 -9 -8 -8 -8 ---------- Run | Yrd Mat Min Exi Min Mat Gar Mat Machines Disabled 11 | . . . . . 5 6 . Max in Single Turn 2 | . . . . . 2 2 . Garrison Relay 3 | . . . . . . 3 . Phase Generator 1 | . . . . . . 1 . Machines Repaired . | . . . . . . . . Machines Dismantled . | . . . . . . . . Machines Sabotaged . | . . . . . . . . Overloaded Fab Kills . | . . . . . . . . Hacking | -11 -10 -10 -10 -9 -8 -8 -8 --------- Run | Yrd Mat Min Exi Min Mat Gar Mat Machines Accessed 10 | . 1 . . . 6 2 1 Terminals 7 | . 1 . . . 4 2 . Fabricators . | . . . . . . . . Repair Stations 1 | . . . . . 1 . . Recycling Units . | . . . . . . . . Scanalyzers 1 | . . . . . . . 1 Garrison Access 1 | . . . . . 1 . . Total Hacks 26 | . 4 . . . 17 3 2 Successful 15 | . 2 . . . 11 1 1 Failed 11 | . 2 . . . 6 2 1 Catastrophic 4 | . . . . . 4 . . Database Lockouts . | . . . . . . . . Manual 14 | . 3 . 1 . 10 . . Terminals 18 | . 4 . . . 11 3 . Fabricators . | . . . . . . . . Repair Stations 5 | . . . . . 5 . . Recycling Units . | . . . . . . . . Scanalyzers 2 | . . . . . . . 2 Garrison Access 1 | . . . . . 1 . . Terminal Hacks 4 | . 1 . . . 2 1 . Open Door 1 | . . . . . . 1 . Branch Access Points 1 | . 1 . . . . . . Garrison Index 1 | . . . . . 1 . . Zone Layout 1 | . . . . . 1 . . Fabricator Hacks . | . . . . . . . . Repair Station Hacks 4 | . . . . . 4 . . Scan Component 2 | . . . . . 2 . . Repair 2 | . . . . . 2 . . Recycling Unit Hacks . | . . . . . . . . Scanalyzer 1 | . . . . . . . 1 Retrieve Study 1 | . . . . . . . 1 Garrison Access Hacks 1 | . . . . . 1 . . Unlock Access 1 | . . . . . 1 . . Unauthorized Hacks 5 | . 1 . . . 4 . . Terminals 5 | . 1 . . . 4 . . Botnet 5 | . 1 . . . 4 . . Fabricators . | . . . . . . . . Repair Stations . | . . . . . . . . Recycling Units . | . . . . . . . . Scanalyzers . | . . . . . . . . Garrison Access . | . . . . . . . . Data Cores Recovered . | . . . . . . . . Used . | . . . . . . . . Hacking Detections 6 | . 1 . . . 3 2 . Full Trace Events . | . . . . . . . . Feedback Events . | . . . . . . . . Feedback Blocked . | . . . . . . . . Robot Schematics Acquired . | . . . . . . . . Robots Built . | . . . . . . . . Authchips . | . . . . . . . . Time . | . . . . . . . . Total Robot Build Rating . | . . . . . . . . Part Schematics Acquired . | . . . . . . . . Parts Built . | . . . . . . . . Authchips . | . . . . . . . . Time . | . . . . . . . . Total Part Build Rating . | . . . . . . . . Part Studies Acquired 1 | . . . . . . . 1 Parts Repaired 2 | . . . . . 2 . . Time 101 | . . . . . 101 . . Parts Recycled . | . . . . . . . . Recycled Matter . | . . . . . . . . Retrieved Matter . | . . . . . . . . Retrieved Components . | . . . . . . . . Parts Scanalyzed . | . . . . . . . . Part Schematics Acquired . | . . . . . . . . Parts Damaged . | . . . . . . . . Bothacking | -11 -10 -10 -10 -9 -8 -8 -8 ------------ Run | Yrd Mat Min Exi Min Mat Gar Mat Used RIF Installer . | . . . . . . . . Robots Hacked . | . . . . . . . . Non-combat . | . . . . . . . . Combat . | . . . . . . . . Robot Hacks Applied . | . . . . . . . . Relay Couplers Released 13 | . . . . . . 13 . Machine Destruction 10 | . . . . . . 10 . Programmers 3 | . . . . . . 3 . Fabnet Peak Effective % . | . . . . . . . . Robots Rewired 4 | . . . . . . 4 . Allies Hacked . | . . . . . . . . Hacks Repelled . | . . . . . . . . Allies | -11 -10 -10 -10 -9 -8 -8 -8 -------- Run | Yrd Mat Min Exi Min Mat Gar Mat Total Allies 5 | . . . . 1 . 4 . Largest Group 2 | . . . . 1 . 2 . Highest-Rated Group 56 | . . . . 31 . 56 . Highest-Rated Ally 31 | . . . . 31 . 31 . Initial Warlord ECA Mod 6 | . . . . . . . 6 Total Orders . | . . . . . . . . Ally Attacks 28 | . . . . 4 . 24 . Total Damage 533 | . . . . 20 . 513 . Kills 8 | . . . . 1 . 7 . Allies Corrupted . | . . . . . . . . Allies Melted . | . . . . . . . . Intel | -11 -10 -10 -10 -9 -8 -8 -8 ------- Run | Yrd Mat Min Exi Min Mat Gar Mat Active Infowar (turns) 478 | 9 268 16 185 . . . . Seismic 478 | 9 268 16 185 . . . . Robot Analysis Total . | . . . . . . . . Derelict Logs Recovered . | . . . . . . . . Drone Launches . | . . . . . . . . Drone Recoveries . | . . . . . . . . Exploration | -11 -10 -10 -10 -9 -8 -8 -8 ------------- Run | Yrd Mat Min Exi Min Mat Gar Mat Turns Passed 4408 | 142 268 16 474 261 1152 1772 323 Spaces Moved 1994 | 86 130 11 292 115 491 785 84 Core 25 | 25 . . . . . . . Treads 1592 | 61 130 11 292 . 268 746 84 Legs 39 | . . . . . . 39 . Wheels 338 | . . . . 115 223 . . Hover . | . . . . . . . . Flight . | . . . . . . . . Fastest Speed 50 | 50 160 160 160 105 105 160 160 Average Speed 155 | 128 160 160 160 105 140 166 210 Slowest Speed 240 | 160 160 160 160 105 240 240 240 Overloaded Moves . | . . . . . . . . Propulsion Burnouts . | . . . . . . . . Robots Hopped . | . . . . . . . . Potential Cave-ins . | . . . . . . . . Cave-ins Triggered . | . . . . . . . . Exploration Rate (%) 34 | 4 35 9 67 32 38 86 7 Regions Visited 7 Branch Regions 3 Pre-discovered Areas 1 | . . . . 1 . . . Known Exits Taken 2 | . 1 . . . 1 . . Unknown Exits Taken 4 | 1 . 1 1 1 . . . Scrap Searched 1 | . . . . 1 . . . Spaces Dug 17 | . . . . . . 17 . Terrain Destroyed 335 | . . . . 54 151 128 2 Melee 17 | . . . . . . 17 . Projectile 27 | . . . . . 24 1 2 AOE 291 | . . . . 54 127 110 . Terrain Rammed . | . . . . . . . . Walls Destroyed . | . . . . . . . . Machines Disabled . | . . . . . . . . Actions | -11 -10 -10 -10 -9 -8 -8 -8 --------- Run | Yrd Mat Min Exi Min Mat Gar Mat Total 2772 | 106 161 10 300 213 736 1031 215 Wait 302 | . 3 . . 57 82 42 118 Move 1988 | 85 129 10 291 114 491 784 84 Hop . | . . . . . . . . Pick Up 73 | 8 9 . 4 10 22 19 1 Fast Attach 11 | 1 . . . . 8 2 . Attach 37 | 6 . . 1 3 16 10 1 Detach . | . . . . . . . . Swap 16 | . 2 . 1 3 1 9 . Drop 39 | . 3 . 3 2 11 18 2 Fire 209 | 6 15 . . 20 102 59 7 Melee 74 | . . . . 4 . 68 2 Ram 1 | . . . . . 1 . . Kick . | . . . . . . . . Crush 2 | . . . . . 2 . . Escape Stasis . | . . . . . . . . Rewire 20 | . . . . . . 20 . Trap . | . . . . . . . . Miscellaneous . | . . . . . . . . Route ------- -11/Scrapyard -10/Materials -10/Mines -10/Exiles -9/Mines -8/Materials (discovered 3 exits: [*Fac] / [*Sto] / Gar) -8/Garrison (discovered 4 exits: *Mat x4) -8/Materials History --------- Turn | Location | Event 12 | -11/Scrapyard | Discovered new exit (range 15) 143 | -11/Scrapyard | Entered Materials 168 | -10/Materials | Identified exit to Mines 325 | -10/Materials | Build established: Mutant 411 | -10/Materials | Entered Mines 421 | -10/Mines | Deemed a non-threat by the Exiles lab entrance 421 | -10/Mines | Discovered new exit (range 5) 427 | -10/Mines | Entered Exiles 466 | -10/Exiles | Met 8R-AWN 495 | -10/Exiles | Met EX-HEX 541 | -10/Exiles | Met EX-BIN 560 | -10/Exiles | Aligned with FarCom system 562 | -10/Exiles | Given EX-Vault access code 602 | -10/Exiles | Opened EX-Vault 611 | -10/Exiles | Found Prototype Device 612 | -10/Exiles | Identified PSU Rigger 618 | -10/Exiles | Found Prototype Processor 619 | -10/Exiles | Identified 0b10 Alert Chip 654 | -10/Exiles | Warned to stay clear of 0b10 Research branches 699 | -10/Exiles | Met EX-DEC 882 | -10/Exiles | Discovered new exit (range 14) 901 | -10/Exiles | Left Exiles lab with 0b10 Alert Chip 901 | -10/Exiles | Entered Mines 902 | -9/Mines | Assembled infested the area 907 | -9/Mines | Assisted by a Guerilla fighting off Assembled 917 | -9/Mines | Escorted by a lone wolf Derelict 937 | -9/Mines | Learned location of Storage (-8) 946 | -9/Mines | Met a Derelict bent on vengeance 1090 | -9/Mines | Received a Rocket Launcher from a helpful Derelict 1128 | -9/Mines | Discovered new exit (range 14) 1162 | -9/Mines | Entered Materials 1162 | -8/Materials | Evolved 4 slots: Propulsion x1, Utility x2, Weapon x1 1478 | -8/Materials | Build established: Skirmisher 1488 | -8/Materials | Discovered new exit (range 11) 1490 | -8/Materials | Garrison activated, responded to threat 1536 | -8/Materials | Discovered new exit (range 16) 1801 | -8/Materials | Repaired Imp. Assault Rifle 1855 | -8/Materials | Repaired Bore Cannon 2144 | -8/Materials | Build established: Scavenger-Skirmisher 2185 | -8/Materials | Garrison activated, responded to threat 2239 | -8/Materials | Lost 3 parts (1p1n1w) 2314 | -8/Materials | Identified exit to Garrison 2314 | -8/Materials | Entered Garrison 2560 | -8/Garrison | Triggered checkpoint 2624 | -8/Garrison | Discovered new exit (range 13) 2648 | -8/Garrison | Triggered checkpoint 2650 | -8/Garrison | Build established: Scavenger-Mutant 2670 | -8/Garrison | Discovered new exit (range 5) 2904 | -8/Garrison | Triggered checkpoint 2912 | -8/Garrison | Core integrity fell below 50% 2978 | -8/Garrison | Lost 4 parts (1p1n1u1w) 3109 | -8/Garrison | Garrison Relay disabled 3202 | -8/Garrison | Triggered checkpoint 3202 | -8/Garrison | Triggered checkpoint 3232 | -8/Garrison | Triggered checkpoint 3365 | -8/Garrison | Discovered new exit (range 11) 3429 | -8/Garrison | Core integrity fell below 20% 3462 | -8/Garrison | Triggered checkpoint 3541 | -8/Garrison | Garrison Relay disabled 3738 | -8/Garrison | Triggered checkpoint 3768 | -8/Garrison | Garrison Relay disabled 3866 | -8/Garrison | Discovered new exit (range 14) 4061 | -8/Garrison | Phase Generator disabled 4086 | -8/Garrison | Entered Materials 4409 | -8/Materials | Destroyed by Y-45 Defender with Heavy Assault Rifle Last Messages --------------- 04326_ S-10 Pest knocked back. 04328_ Hrd. Medium Armor Plating destroyed. 04329_ S-10 Pest destroyed. 04335_ Connecting with Scanalyzer... 04335_ Current location identified: Materials >>Study(Assault Cannon) Identified Assault Cannon... Downloading performance data... Effective improvements: +10% accuracy 04341_ U-05 Engineer builds a Wall. 04352_ Acquired Minigun. 04353_ Dropped Remote Datajack. 04354_ Dropped Relay Coupler [Grunt]. 04369_ System corrupted: IFF burst signal emitted. 04375_ K-01 Serf collects debris. 04400_ Critical hit (Burn: +37). 04400_ Lgt. Nuclear Core destroyed. 04408_ VV&7SZ33T,&IOKZ DET T Map ----- +----------------------------------------------------+ | ????????????????????????????????????????? | | ????????????????????????????????????????? | | ????????????????????????????????????????? | | ????????????????????????????????????????? | | ????????????????????????????????????????? | | ????????????????????????????????????????? | | ????????????????????????????????????????? | | ????????????????????????????????????????? | | ????????????????????????????????????????? | | ????????????????????????????????????????? | | ????????????????????????????????????????? | | ????????????????????????????????????????? | | #########???????????????????????????????? | | #???????????????????????????????? | | #???????????????????????????????? | | #?????????????????#?????????????? | | ######+#####?????????????? ?????????????? | | ## #?????????????# #????????????? | | ## "" #?????????????# #????????????? | | ##% """ ######????????# #????????????? | | ## * S" # #????????# #????????????? | | ##% """ # #????????# #????????????? | | ## [""" # #????????# #????????????? | | ## #|! #????????#%#????????????? | | ## # ##########Y#????????????? | | ## + + @ #????????????? | | [########### ############????????????? | | #?????????# #???????????????????????? | | #?????????# #???????????????????????? | | ##?????????######???????????????????????? | | | | | | | | | | | | | | | | | | | | | | | | | | | | | | | | | | | | | | | | | +----------------------------------------------------+ Best States ------------- Heat Dissipation 50 Energy Generation 16 Energy Capacity 290 Matter Stores 300 Matter Capacity 300 Sight Range 16 Terrain Scan Density 10 Armor Coverage 225 Evasion (%) 50 Targeting Accuracy 8 Recoil Reduction 3 Offensive Hacking 10 Item Schematics ----------------- None Robot Schematics ------------------ None Fabricated ------------ Nothing Repaired ---------- Imp. Assault Rifle | 17% | -8/Materials Bore Cannon | 5% | -8/Materials Studied --------- Assault Cannon | -8/Materials | Hacked Alien Tech Used ----------------- None Achievements -------------- None Challenges ------------ None Game ------ Seed FrostWeldingDrive Manual? 0 Play Time 00:36:55 Cumulative 64.9 hours Start 2026.09.16 @ 15:07:21 End 2026.09.16 @ 15:45:19 Sessions 1 Manual Loads 0 Difficulty Rogue Special Mode None Game No. 122 Rogue 122 Adventurer 0 Explorer 0 Win Type - Total 0 Types 0/0/0/0/0/0/0/0/0/0 Lore% 30 Gallery% 36 Achievement% 31 Wizard Run 0 Options --------- Layout 2 ASCII 0 Keyboard 0 Movement Mouse Keybinds 0 Fullscreen 1 Font 48/Smallcaps Map View 50x44 Zoom Use 0% Tactical HUD 1 Map Filters NONE Filters NONE Steam 1 RUN: aa787699-813e-40f2-b067-7af1b50cc957